bitfinex-derivatives/quotes_ETHF0:USTF0_20260307
["timestamp","ask_amount","ask_price","bid_price","bid_amount"]
[1772856893918,2.69460342,1970.9,1970.3,1.96573235]
[1772856894118,2.69460342,1970.9,1970.3,1.97124883]
[1772856897117,2.63365484,1971.4,1970.7,1.96573235]
[1772856897416,2.63365484,1971.2,1970.7,1.96573235]
[1772856897617,2.63365484,1971.2,1970.5,1.96573235]
[1772856899022,2.63365484,1971.2,1970.3,1.97124883]
[1772856899223,2.63365484,1971.2,1970.4,40.8]
[1772856901132,2.61304501,1971.1,1970.4,40.8]
[1772856901424,2.61304501,1971.0,1970.3,0.00551648]
[1772856901826,2.61304501,1971.0,1970.4,40.8]
[1772856904028,2.61304501,1971.0,1970.3,0.00551648]
[1772856904429,2.61304501,1971.0,1970.3,40.80551648]
[1772856922941,2.61304501,1971.0,1970.3,67.79051648]
[1772856923332,2.60181857,1971.1,1970.3,69.75624883]
[1772856923641,2.60181857,1971.3,1970.8,1.96573235]
[1772856924438,0.00659391,1971.5,1970.8,1.96573235]
[1772856924439,2.60836505,1971.5,1970.8,1.96573235]
[1772856927940,15.67160994,1971.9,1970.6,26.994]
[1772856927941,2.60431829,1971.8,1971.0,1.96573235]
[1772856928442,2.60431829,1971.7,1970.8,1.96573235]
[1772856928935,2.60952303,1971.7,1970.8,1.96573235]
[1772856929240,2.60621942,1971.5,1970.8,1.96573235]
[1772856929841,2.60621942,1971.5,1971.0,1.96573235]
[1772856930539,2.61137568,1971.7,1971.2,1.96573235]
[1772856931341,15.66860994,1972.2,1970.5,2.21945235]
[1772856931342,2.60380467,1972.2,1971.4,1.96573235]
[1772856931543,2.60375482,1972.1,1971.2,27.028]
[1772856931844,2.60375482,1972.1,1971.3,1.96573235]
[1772856932344,2.60947248,1972.1,1971.3,1.96573235]
[1772856933445,2.60947248,1972.1,1971.5,1.96573235]
[1772856934642,2.60972834,1972.0,1971.5,1.96573235]
[1772856935237,2.60972834,1972.0,1971.5,42.76573235]
[1772856936342,2.60972834,1972.0,1971.5,40.8]
[1772856936543,2.60972834,1972.0,1971.3,1.96573235]
[1772856936945,2.60972834,1972.0,1971.4,40.8]
[1772856937143,2.60972834,1972.0,1971.1,1.96573235]
[1772856938144,2.60952169,1971.9,1971.1,1.96573235]
[1772856940548,2.60952169,1971.9,1970.9,40.8]
[1772856944744,2.61123691,1971.7,1970.9,40.8]
[1772856945451,2.61123691,1971.7,1971.0,1.96496216]
[1772856945653,2.61123691,1971.7,1970.9,40.8]
[1772856946253,2.61117836,1972.0,1971.0,1.96496216]
[1772856946456,2.61689602,1972.1,1971.3,1.96496216]
[1772856946650,2.61689602,1972.1,1971.3,28.93396216]
[1772856948451,2.61058394,1972.5,1971.6,1.96496216]
[1772856948658,2.61058394,1972.5,1971.3,26.969]
[1772856949350,2.5971182,1972.3,1971.3,26.969]
[1772856950953,2.5971182,1972.3,1971.2,28.97096216]
[1772856956354,2.5971182,1972.3,1971.2,27.006]
[1772856957252,2.64158234,1972.1,1971.2,27.006]
[1772856957852,2.641517,1971.9,1971.2,27.006]
[1772856972363,2.65240242,1972.3,1971.2,27.006]
[1772856972563,2.65240242,1972.1,1971.2,27.006]
[1772856977559,2.65240242,1972.1,1971.2,28.97096216]
[1772856979068,2.65240242,1972.1,1971.2,27.006]
[1772856980469,2.65240242,1972.1,1971.2,28.97096216]
[1772856983967,2.59116571,1972.4,1971.2,28.97096216]
[1772856984170,2.59116571,1972.2,1971.2,28.97096216]
[1772856985467,2.59114187,1972.3,1971.5,1.96496216]
[1772856987471,2.59114187,1972.3,1971.2,27.006]
[1772856987472,2.59114187,1972.3,1971.2,28.97096216]
[1772856989175,2.59666936,1972.5,1971.5,1.96496216]
[1772856989874,2.59666936,1972.5,1971.2,28.97096216]
[1772856990674,2.59666936,1972.5,1971.5,1.96496216]
[1772856993375,0.0057483,1972.5,1971.5,1.96496216]
[1772856993567,2.58508726,1972.5,1971.5,1.96496216]
[1772856997580,0.0057483,1972.5,1971.5,1.96496216]
[1772856997773,2.55813878,1972.7,1972.2,1.96496216]
[1772856998078,2.55813878,1972.7,1971.8,27.178]
[1772856998679,2.56426283,1972.7,1971.8,27.18276473]
[1772857000684,2.56426283,1972.7,1972.0,1.96298525]
[1772857003581,2.56495185,1973.0,1972.2,1.96298525]
[1772857004584,2.57135024,1973.0,1972.2,1.96298525]
[1772857009790,2.57135024,1973.0,1972.0,1.96298525]
[1772857015798,2.55928217,1972.8,1971.8,29.14574998]
[1772857016188,2.55928217,1972.6,1971.8,29.14574998]
[1772857016389,2.55928217,1972.6,1971.8,27.18276473]
[1772857018997,2.55928217,1972.6,1971.8,0.00476473]
[1772857021401,2.55338365,1972.4,1971.8,0.00476473]
[1772857024592,2.55338365,1972.4,1971.8,1.96774998]
[1772857025702,2.55058434,1972.7,1971.8,1.96774998]
[1772857025902,2.55058434,1972.7,1972.0,1.96298525]
[1772857028102,2.55058434,1972.7,1972.2,1.96298525]
[1772857028498,0.00639839,1973.0,1972.2,1.96298525]
[1772857028703,2.54167458,1972.9,1972.4,1.96298525]
[1772857028903,2.54167458,1972.9,1972.2,1.96298525]
[1772857030507,2.54167458,1972.9,1972.4,1.96298525]
[1772857031408,2.54167458,1972.9,1972.0,29.10098525]
[1772857032405,2.54167458,1972.9,1972.2,1.96298525]
[1772857033103,2.54167458,1972.9,1972.0,27.138]
[1772857033307,2.54167458,1972.9,1972.0,29.10098525]
[1772857042214,0.00639839,1973.0,1971.8,1.96774998]
[1772857042215,2.5545652,1972.7,1971.8,1.96774998]
[1772857043113,2.5545652,1972.7,1972.2,1.96298525]
[1772857043514,2.5545652,1972.7,1972.0,1.96298525]
[1772857045520,2.5553968,1972.8,1972.4,1.96298525]
[1772857048623,2.5553968,1972.8,1972.2,1.96298525]
[1772857050921,2.5553968,1972.8,1971.9,1.96298525]
[1772857057329,2.5553968,1972.8,1972.1,1.96298525]
[1772857062628,2.5553968,1972.8,1971.8,1.96759119]
[1772857072044,2.52180787,1972.6,1971.8,0.00476473]
[1772857074652,2.51748327,1972.4,1971.6,40.8]
[1772857075541,2.51748327,1972.4,1971.6,40.80610935]
[1772857084454,2.52269167,1972.9,1971.8,1.96282646]
[1772857084655,2.52269167,1972.7,1971.9,26.958]
[1772857089856,2.52741798,1972.9,1971.9,26.958]
[1772857096659,2.52741798,1972.9,1972.1,1.96282646]
[1772857105171,2.52741798,1972.9,1971.9,26.958]
[1772857106768,2.52741798,1972.9,1971.8,1.96282646]
[1772857106974,2.52741798,1972.9,1971.9,27.165]
[1772857122486,2.52741798,1972.9,1972.1,1.96266756]
[1772857140201,2.52741798,1972.9,1972.3,1.96266756]
[1772857141607,2.53640696,1973.0,1972.5,1.96266756]
[1772857143009,2.53640696,1973.0,1972.3,1.96266756]
[1772857162621,2.53640696,1973.0,1972.5,1.96266756]
[1772857162818,1.79936852,1973.0,1972.5,1.96266756]
[1772857163724,1.80292689,1973.0,1972.5,1.96266756]
[1772857172432,2.19676424,1973.2,1972.7,1.96266756]
[1772857172930,1.82034252,1973.5,1972.8,44.39959761]
[1772857173132,1.82034252,1973.3,1972.8,40.8]
[1772857173338,1.82034252,1973.3,1972.5,1.78870824]
[1772857173631,1.82453235,1973.3,1972.5,1.78870824]
[1772857174430,1.82453235,1973.3,1972.6,40.8]
[1772857178435,1.82453235,1973.3,1972.6,44.5513758]
[1772857182435,1.82453235,1973.3,1972.6,42.58870824]
[1772857183036,1.82453235,1973.3,1972.7,1.78870824]
[1772857187546,1.82453235,1973.3,1972.6,42.58870824]
[1772857187739,1.82453235,1973.3,1972.7,1.78870824]
[1772857200654,1.82453235,1973.3,1972.6,40.8]
[1772857201256,1.82453235,1973.3,1972.6,42.58791826]
[1772857203957,1.82453235,1973.3,1972.6,1.78791826]
[1772857209162,1.82453235,1973.3,1972.5,42.72785882]
[1772857209362,1.82453235,1973.3,1972.5,1.92785882]
[1772857211965,1.79145484,1973.1,1972.5,1.92785882]
[1772857213668,1.79145484,1973.1,1972.4,68.95285882]
[1772857213868,1.79145484,1973.1,1972.4,42.72785882]
[1772857214068,1.79145484,1973.1,1972.4,1.92785882]
[1772857216664,1.79145484,1973.1,1972.2,42.72785882]
[1772857216863,1.96603608,1973.3,1972.1,27.058]
[1772857216864,1.79145484,1972.9,1972.1,27.058]
[1772857217073,1.79145484,1972.9,1972.1,28.98585882]
[1772857217274,1.79145484,1972.9,1972.2,1.92785882]
[1772857220278,1.79145484,1972.9,1972.1,42.72785882]
[1772857220472,1.79145484,1972.7,1971.9,1.92785882]
[1772857222474,1.79145484,1972.6,1971.9,1.92785882]
[1772857244694,1.78499661,1972.2,1971.7,1.77755221]
[1772857249689,1.78499661,1972.2,1971.6,1.78721993]
[1772857252496,1.78499661,1972.2,1971.6,0.00610935]
[1772857255093,1.78499661,1972.2,1971.6,1.78721993]
[1772857264807,1.78499661,1972.2,1971.6,0.00610935]
[1772857265006,1.94066118,1972.1,1971.6,0.00610935]
[1772857265909,1.94066118,1972.1,1971.4,1.93724577]
[1772857266709,1.94066118,1972.1,1971.4,1.94241765]
[1772857268006,1.94066118,1971.9,1971.4,0.00517188]
[1772857268208,1.94500064,1971.9,1971.4,0.00517188]
[1772857274010,1.94066118,1971.7,1971.0,1.93724577]
[1772857275009,1.94066118,1971.7,1971.0,1.94120952]
[1772857277203,0.76427271,1971.6,1971.0,0.00396375]
[1772857277408,1.94066118,1971.5,1971.0,0.00396375]
[1772857280116,1.94066118,1971.5,1971.0,1.94120952]
[1772857280620,1.94066118,1971.5,1971.0,0.00396375]
[1772857285815,1.94066118,1971.5,1971.0,1.96769828]
[1772857286022,1.94066118,1971.5,1971.1,1.93724577]
[1772857286921,1.94066118,1971.7,1971.1,1.93724577]
[1772857288926,1.94066118,1971.7,1971.3,1.93724577]
[1772857295830,10.6945716,1971.9,1971.3,1.93724577]
[1772857296225,1.91123214,1971.8,1971.3,1.93724577]
[1772857302638,4.20116067,1972.2,1971.3,1.93724577]
[1772857302842,1.91123214,1972.5,1972.1,1.96373453]
[1772857303034,1.33723215,1972.5,1972.3,1.96373453]
[1772857303239,1.91123214,1972.8,1972.2,1.86074015]
[1772857303435,1.91123214,1972.8,1972.0,1.86074015]
[1772857303743,1.91616911,1972.8,1972.0,1.86074015]
[1772857304044,1.91123214,1972.6,1972.0,1.86074015]
[1772857304440,1.91123214,1972.4,1972.0,1.86074015]
[1772857305037,0.00493697,1972.8,1972.0,1.86074015]
[1772857305237,1.91123214,1972.7,1972.0,1.86074015]
[1772857310647,0.00493697,1972.8,1972.0,1.86074015]
[1772857310841,1.91616911,1972.8,1972.0,1.86074015]
[1772857312242,0.00493697,1972.8,1972.0,1.86074015]
[1772857312443,1.91616911,1972.8,1972.0,1.86074015]
[1772857321454,0.00493697,1972.8,1972.0,1.86074015]
[1772857321760,1.80577978,1973.2,1972.5,1.83808382]
[1772857322554,1.81170924,1973.2,1972.5,1.84284328]
[1772857326462,2.536,1973.1,1972.5,1.84284328]
[1772857326654,1.81170924,1973.2,1972.5,1.84284328]
[1772857327061,2.536,1973.0,1972.5,1.84284328]
[1772857327463,2.536,1972.9,1972.5,1.84284328]
[1772857327663,1.81170924,1973.2,1972.5,1.84284328]
[1772857328164,2.536,1973.0,1972.5,1.84284328]
[1772857328564,2.536,1972.9,1972.5,1.84284328]
[1772857328754,1.81170924,1973.2,1972.5,1.84284328]
[1772857328960,2.536,1973.0,1972.5,1.84284328]
[1772857329362,1.81170924,1973.2,1972.5,1.84284328]
[1772857329563,2.536,1973.0,1972.5,1.84284328]
[1772857329964,2.536,1972.9,1972.5,1.84284328]
[1772857330165,1.81170924,1973.2,1972.5,1.84284328]
[1772857331067,1.80627634,1973.2,1972.5,1.84284328]
[1772857332367,1.80034688,1973.7,1972.5,1.84284328]
[1772857333062,1.80034688,1973.7,1972.8,1.90664031]
[1772857333269,1.80475044,1973.7,1972.8,1.90664031]
[1772857335967,1.80475044,1973.7,1973.0,1.90664031]
[1772857339467,1.80475044,1973.7,1972.9,1.90664031]
[1772857340169,1.80034688,1973.5,1972.8,1.90664031]
[1772857342865,1.80034688,1973.5,1972.7,1.90664031]
[1772857344867,3.76377063,1973.5,1972.5,0.00475946]
[1772857345062,2.56461959,1973.4,1972.5,0.00475946]
[1772857345272,1.80034688,1973.3,1972.5,0.00475946]
[1772857345971,1.80034688,1973.1,1972.5,0.00475946]
[1772857346867,1.80034688,1973.1,1972.3,40.8]
[1772857347073,1.80034688,1973.1,1972.2,1.90664031]
[1772857347572,1.80034688,1973.1,1972.3,1.90664031]
[1772857347973,1.80034688,1973.1,1972.3,1.9129129]
[1772857349776,1.71058792,1972.9,1972.3,0.00627259]
[1772857353367,1.69778352,1972.8,1972.1,1.88200474]
[1772857353571,1.69778352,1972.8,1971.9,1.88200474]
[1772857353771,0.76427271,1972.7,1971.9,1.88200474]
[1772857353972,1.69587491,1972.6,1971.9,1.88200474]
[1772857354376,1.69587491,1972.6,1971.9,1.88691035]
[1772857354576,3.65929866,1972.6,1971.6,1.88200474]
[1772857354779,1.67810591,1972.2,1971.6,1.88200474]
[1772857355882,1.68367324,1972.2,1971.6,1.88764143]
[1772857358876,1.68367324,1972.2,1971.6,0.00563669]
[1772857359073,1.68367324,1972.2,1971.5,1.88200474]
[1772857359879,1.68367324,1972.2,1971.3,42.68200474]
[1772857360079,1.68367324,1972.2,1971.4,1.88200474]
[1772857360881,1.68388758,1972.0,1971.3,1.88824826]
[1772857361879,1.68566813,1971.9,1971.3,1.88824826]
[1772857362276,1.68566813,1971.9,1971.3,0.00624352]
[1772857362481,1.68566813,1971.9,1971.1,1.88200474]
[1772857363385,1.68566813,1971.9,1971.1,1.8862375]
[1772857364491,1.68911476,1971.5,1971.1,1.8862375]
[1772857370095,1.69625791,1972.1,1971.1,1.8862375]
[1772857370301,1.69625791,1972.0,1971.5,1.88200474]
[1772857375496,1.70956856,1972.2,1971.5,1.88200474]
[1772857380506,1.70956856,1972.2,1971.7,1.8687714]
[1772857380706,0.00556733,1972.2,1971.7,1.8687714]
[1772857381307,0.00556733,1972.2,1971.9,1.8687714]
[1772857381906,1.76091573,1972.7,1972.1,1.8736197]
[1772857382212,4.17714031,1972.9,1971.2,67.69267082]
[1772857382213,1.76091573,1972.9,1972.5,1.8736197]
[1772857382712,1.70206088,1973.3,1972.5,1.8736197]
[1772857382913,1.70206088,1973.1,1972.5,1.879594]
[1772857383109,0.76948868,1973.3,1972.7,1.8736197]
[1772857383311,1.70206088,1973.2,1972.7,1.8736197]
[1772857384612,1.70340579,1973.0,1972.5,1.879594]
[1772857386915,1.74875481,1973.2,1972.5,1.879594]
[1772857402231,0.00521597,1973.3,1972.5,1.879594]
[1772857402429,1.84681506,1973.3,1972.5,1.879594]
[1772857403032,1.84819451,1973.3,1972.5,1.879594]
[1772857403736,1.84819451,1973.3,1972.7,1.8736197]
[1772857404230,0.00521597,1973.3,1972.7,1.8736197]
[1772857404633,1.8440863,1973.7,1972.9,1.8736197]
[1772857405625,1.84927233,1973.7,1972.9,1.8736197]
[1772857406537,1.84627293,1973.6,1972.9,1.8736197]
[1772857407730,0.00518603,1973.7,1973.3,1.8736197]
[1772857409432,1.90893821,1973.5,1972.8,1.8736197]
[1772857410036,1.91516633,1973.7,1972.9,1.8736197]
[1772857410731,1.91516633,1973.7,1973.1,1.8736197]
[1772857411037,0.00518603,1973.7,1973.1,1.8736197]
[1772857411629,1.91674282,1973.7,1973.1,1.8736197]
[1772857413738,0.00518603,1973.7,1973.1,1.8736197]
[1772857416138,2.80953778,1974.2,1973.1,1.8736197]
[1772857416340,1.85380067,1974.1,1973.1,1.8736197]
[1772857416741,1.85380067,1974.1,1973.3,1.94029991]
[1772857417144,1.85786054,1974.1,1973.3,1.94029991]
[1772857418943,1.85380067,1973.9,1973.3,1.94029991]
[1772857420446,1.85786054,1974.1,1973.3,1.94029991]
[1772857424847,1.85380067,1973.9,1972.8,1.94029991]
[1772857425044,9.01015491,1973.8,1972.8,1.94029991]
[1772857425347,1.85380067,1974.0,1973.0,1.94029991]
[1772857425950,0.00405987,1974.1,1973.0,1.94029991]
[1772857426144,1.85786054,1974.1,1973.0,1.94029991]
[1772857428051,1.85380067,1973.9,1973.0,1.94029991]
[1772857430154,1.85380067,1973.7,1973.0,1.94029991]
[1772857438756,1.95820001,1974.0,1973.0,1.94029991]
[1772857438955,6.61766558,1973.9,1973.0,1.94029991]
[1772857439254,1.95820001,1974.0,1973.0,1.94029991]
[1772857444257,0.00405987,1974.1,1973.0,1.94029991]
[1772857444258,1.9860125,1973.8,1973.0,1.94029991]
[1772857451164,1.9860125,1973.6,1973.0,1.94029991]
[1772857463468,1.9096255,1973.8,1973.0,1.94029991]
[1772857467170,1.9096255,1973.6,1973.0,1.94029991]
[1772857473582,1.89418747,1973.5,1973.0,1.94029991]
[1772857480583,10.40718747,1973.6,1973.0,1.94029991]
[1772857480881,10.40818747,1973.6,1973.0,1.94029991]
[1772857481083,1.89418747,1973.6,1973.0,1.94029991]
[1772857482078,1.89418747,1973.8,1973.0,1.94029991]
[1772857482381,15.72664117,1973.7,1973.0,1.94029991]
[1772857482582,6.64533199,1973.6,1973.0,1.94029991]
[1772857490291,8.53951946,1973.6,1973.0,1.94029991]
[1772857490490,1.89418747,1973.6,1973.0,1.94029991]
[1772857491691,10.44818747,1973.6,1973.0,1.94029991]
[1772857493991,1.89418747,1973.5,1973.0,1.94029991]
[1772857500798,1.96871576,1973.3,1972.7,2.05942549]
[1772857501693,10.51553202,1973.6,1972.7,2.05942549]
[1772857501897,1.97701564,1973.4,1972.7,2.05942549]
[1772857506802,3.93854766,1973.6,1972.7,2.05942549]
[1772857507002,6.64570701,1973.5,1972.7,2.05942549]
[1772857507204,12.55754766,1973.6,1972.7,2.05942549]
[1772857507401,6.64562394,1973.5,1972.7,2.05942549]
[1772857507703,1.97701564,1973.5,1972.7,2.05942549]
[1772857511305,1.97701564,1973.5,1972.8,1.9396527]
[1772857512508,3.93854766,1973.4,1972.8,1.9396527]
[1772857514604,1.97701564,1973.4,1972.8,1.9396527]
[1772857531724,1.97701564,1973.5,1972.8,1.9396527]
[1772857532222,1.97701564,1973.5,1972.8,28.3046527]
[1772857532421,1.97701564,1973.5,1972.9,1.91653254]
[1772857541929,2.00024841,1973.7,1972.9,1.91653254]
[1772857542125,2.00024841,1973.7,1972.8,26.365]
[1772857542126,2.00024841,1973.6,1972.7,42.71653254]
[1772857542429,2.00024841,1973.7,1972.8,1.91653254]
[1772857542731,8.63409283,1973.6,1972.8,1.91653254]
[1772857542934,2.00024841,1973.6,1972.8,1.91653254]
[1772857545435,2.00024841,1973.6,1973.0,1.91653254]
[1772857553036,2.00024841,1973.9,1973.0,1.91653254]
[1772857553339,2.00024841,1974.0,1973.2,1.91653254]
[1772857553732,0.00405987,1974.1,1973.2,1.91653254]
[1772857558946,0.00405987,1974.1,1973.5,2.00600745]
[1772857565950,1.98232278,1974.1,1973.5,2.00600745]
[1772857569153,0.00405987,1974.1,1973.5,2.00600745]
[1772857574455,1.97826291,1974.5,1973.5,2.00600745]
[1772857575457,1.97826291,1974.3,1973.5,2.00600745]
[1772857583264,1.97826291,1974.1,1973.5,2.00600745]
[1772857600692,1.85622747,1974.3,1973.5,2.00600745]
[1772857600992,6.61858475,1974.2,1973.5,2.00600745]
[1772857601191,1.85622747,1974.3,1973.5,2.00600745]
[1772857601490,8.47517466,1974.2,1973.5,2.00600745]
[1772857601691,1.85622747,1974.2,1973.5,2.00600745]
[1772857622410,2.02387404,1973.9,1973.5,2.00600745]
[1772857628410,2.02387404,1974.3,1973.6,2.02594231]
[1772857628611,6.61845355,1974.2,1973.6,2.02594231]
[1772857628811,2.02387404,1974.3,1973.6,2.02594231]
[1772857629006,6.23775882,1974.5,1973.8,2.02594231]
[1772857629211,2.02861024,1974.5,1973.8,2.02594231]
[1772857629715,2.02387404,1974.3,1973.8,2.02594231]
[1772857631818,2.02387404,1974.3,1973.4,2.02594231]
[1772857640523,2.02387404,1974.3,1973.6,2.02594231]
[1772857648429,1.99852902,1974.4,1973.6,2.02594231]
[1772857650033,2.00218207,1974.5,1973.6,2.02594231]
[1772857651033,2.00218207,1974.5,1973.3,1.96027611]
[1772857651034,2.00218207,1974.5,1973.8,2.02594231]
[1772857652733,2.00218207,1974.5,1974.0,1.98244914]
[1772857652932,2.00218207,1974.5,1974.0,1.98858124]
[1772857659948,0.0047362,1974.5,1974.0,1.98858124]
[1772857666455,1.86906149,1974.7,1974.0,1.98858124]
[1772857667352,1.8729154,1974.7,1974.0,1.98858124]
[1772857671350,0.00385391,1974.7,1974.0,1.98858124]
[1772857672046,1.8729154,1974.7,1974.0,1.98858124]
[1772857689564,1.8729154,1974.7,1974.0,0.0061321]
[1772857690258,3.83207373,1974.7,1974.0,0.0061321]
[1772857690462,1.90304345,1974.5,1973.8,2.0372687]
[1772857691564,1.90304345,1974.5,1973.8,2.04341535]
[1772857698371,1.89472585,1974.4,1973.8,2.04341535]
[1772857710281,10.47425787,1974.5,1973.8,2.04341535]
[1772857711082,1.88925787,1974.5,1973.8,2.04341535]
[1772857733403,3.82931046,1974.7,1973.8,2.04341535]
[1772857733594,1.86579535,1974.5,1973.8,2.04341535]
[1772857740608,1.86502375,1974.6,1973.9,1.98644509]
[1772857743211,1.86718028,1974.7,1973.9,1.98644509]
[1772857744107,0.00385391,1974.7,1974.1,1.83578096]
[1772857744912,0.00295341,1974.7,1974.3,1.83578096]
[1772857748814,1.86302758,1974.7,1974.3,1.83578096]
[1772857749515,0.00295341,1974.7,1974.3,1.83578096]
[1772857757524,1.86888093,1974.7,1974.3,1.83578096]
[1772857758324,0.00295341,1974.7,1974.3,1.83578096]
[1772857766530,0.47105305,1975.0,1974.3,1.83578096]
[1772857766830,2.33710536,1975.0,1974.3,1.83578096]
[1772857767130,1.86583954,1974.9,1974.3,1.83578096]
[1772857767330,1.86583954,1974.8,1974.3,1.83578096]
[1772857767528,1.87138056,1974.8,1974.3,1.83578096]
[1772857770330,0.00554102,1974.8,1974.3,1.83578096]
[1772857770932,0.00554102,1974.8,1974.3,3.79544216]
[1772857771132,0.00554102,1974.8,1974.4,1.83578096]
[1772857778539,0.47105305,1975.0,1974.4,1.83578096]
[1772857779635,0.47743729,1975.0,1974.4,1.83578096]
[1772857781435,2.29208474,1975.0,1974.4,1.83578096]
[1772857785336,1.95310482,1974.6,1973.9,2.02035125]
[1772857787841,1.95310482,1974.4,1973.9,2.02035125]
[1772857791640,1.95310482,1974.4,1973.8,2.0264979]
[1772857800853,1.97477367,1974.8,1973.8,2.0264979]
[1772857801451,1.97477367,1974.8,1974.0,1.95558926]
[1772857802055,1.98051758,1974.7,1974.0,1.95558926]
[1772857802255,1.98051758,1974.6,1974.0,1.95558926]
[1772857806263,8.689,1974.9,1974.0,1.95558926]
[1772857806264,1.98051758,1974.9,1974.0,1.95558926]
[1772857806463,10.67551758,1974.9,1974.0,1.95558926]
[1772857806664,1.98051758,1974.8,1974.0,1.95558926]
[1772857810263,1.98051758,1974.6,1973.8,0.00614665]
[1772857810464,1.98051758,1974.4,1973.7,1.95900106]
[1772857811458,1.98051758,1974.4,1973.7,1.96487104]
[1772857822069,1.98051758,1974.7,1973.8,1.95900106]
[1772857822572,1.98051758,1974.7,1974.0,1.95900106]
[1772857826374,1.98051758,1974.6,1974.0,1.95900106]
[1772857827077,1.98051758,1974.4,1973.8,1.95900106]
[1772857827377,1.98051758,1974.6,1973.9,1.95900106]
[1772857836979,1.98777812,1974.9,1973.9,1.95900106]
[1772857846092,1.98777812,1974.9,1974.1,1.9748924]
[1772857851192,0.47743729,1975.0,1974.1,1.9748924]
[1772857851596,2.46521541,1975.0,1974.1,1.9748924]
[1772857852597,2.46521541,1975.0,1974.3,1.9748924]
[1772857861506,0.47129064,1975.0,1974.7,1.96488836]
[1772857863702,1.65487986,1975.1,1974.7,1.96488836]
[1772857863907,1.96100588,1975.2,1974.7,1.96488836]
[1772857864805,1.96473519,1975.2,1974.7,1.96488836]
[1772857866505,1.96100588,1975.1,1974.5,2.02533486]
[1772857866810,1.96100588,1975.0,1974.3,2.02533486]
[1772857873015,1.96100588,1975.1,1974.5,2.02533486]
[1772857882526,1.96100588,1974.8,1974.1,2.02533486]
[1772857885527,1.96100588,1975.0,1974.3,2.02533486]
[1772857891933,1.84859297,1975.1,1974.3,2.02533486]
[1772857895337,1.85232228,1975.2,1974.5,2.03159761]
[1772857895726,1.96213439,1975.2,1974.5,2.03159761]
[1772857895934,1.84859297,1975.1,1974.5,2.03159761]
[1772857899238,1.85232228,1975.2,1974.5,2.03159761]
[1772857902437,1.85232228,1975.2,1974.7,2.03159761]
[1772857918051,1.93855283,1975.6,1974.7,2.03159761]
[1772857918948,1.94489231,1975.6,1974.7,2.03159761]
[1772857932560,1.85549264,1975.4,1974.7,2.03159761]
[1772857949769,1.86183212,1975.6,1974.7,2.03159761]
[1772857961676,1.84511871,1975.4,1974.7,2.03159761]
[1772857963279,1.84511871,1975.3,1974.5,1.88930025]
[1772857963482,1.84511871,1975.2,1974.5,1.88930025]
[1772857974487,1.84511871,1975.1,1974.5,1.88930025]
[1772857976082,1.84511871,1975.3,1974.5,1.88930025]
[1772857978781,1.96146702,1975.1,1974.5,1.88930025]
[1772857978987,1.96146702,1974.9,1974.5,1.88930025]
[1772857984890,1.96146702,1974.9,1974.2,1.93043077]
[1772857985196,1.87209764,1974.7,1974.2,1.93043077]
[1772857992292,4.21343485,1975.3,1974.2,1.93043077]
[1772857992293,1.87209764,1974.9,1974.2,1.93043077]
[1772857992498,1.87209764,1975.1,1974.4,1.93043077]
[1772857992996,1.87209764,1975.3,1974.4,1.93043077]
[1772857996102,1.87209764,1975.3,1974.6,1.93043077]
[1772857997904,1.87209764,1975.5,1974.8,1.93043077]
[1772858000503,1.87209764,1975.3,1974.4,1.93043077]
[1772858000702,0.00633948,1975.6,1974.4,1.93043077]
[1772858000703,1.87209764,1975.1,1974.4,1.93043077]
[1772858013919,1.87209764,1975.1,1974.5,1.95851347]
[1772858014116,1.87209764,1975.1,1974.6,1.86044494]
[1772858016223,1.92346776,1975.3,1974.6,1.86044494]
[1772858022920,1.92346776,1975.1,1974.2,16.50525]
[1772858023126,1.92346776,1975.1,1974.5,1.86044494]
[1772858024326,1.92346776,1974.9,1974.3,1.86044494]
[1772858028127,1.92346776,1974.9,1974.4,1.86044494]
[1772858057262,1.92346776,1974.9,1973.9,1.96208789]
[1772858059964,1.99321938,1974.7,1973.9,1.96208789]
[1772858065459,1.99321938,1974.7,1973.7,1.96795787]
[1772858065667,1.99321938,1974.5,1973.7,1.96795787]
[1772858071069,1.99321938,1974.3,1973.2,1.96208789]
[1772858071476,1.99321938,1974.3,1973.4,1.96208789]
[1772858072165,1.99321938,1974.3,1973.4,1.96581633]
[1772858094496,1.99321938,1974.3,1973.6,1.87081808]
[1772858096899,1.81985092,1974.1,1973.5,1.87081808]
[1772858097101,1.82414636,1974.1,1973.5,1.87081808]
[1772858097894,1.82414636,1974.1,1973.4,1.76337288]
[1772858098098,1.86589966,1973.9,1973.4,1.76337288]
[1772858098597,1.86589966,1973.9,1973.2,1.75964444]
[1772858098895,1.86589966,1973.9,1972.4,13.26777291]
[1772858098896,1.86589966,1973.2,1972.4,13.26777291]
[1772858099095,1.95979271,1973.3,1972.0,1.75964444]
[1772858099096,1.86589966,1972.5,1972.0,1.75964444]
[1772858099701,1.87200905,1972.5,1972.0,1.76537269]
[1772858100097,1.86589966,1972.3,1971.5,3.71943715]
[1772858100299,2.63017237,1972.4,1972.0,1.75964444]
[1772858100505,1.86589966,1972.4,1972.0,1.75964444]
[1772858101103,1.86589966,1972.4,1972.0,1.76604343]
[1772858101296,1.86589966,1972.4,1972.0,0.00639899]
[1772858101496,1.86589966,1972.3,1971.7,1.75964444]
[1772858101802,1.87200905,1972.5,1972.2,1.71088465]
[1772858102605,1.87200905,1972.5,1972.2,1.71658384]
[1772858103008,1.70294887,1973.1,1972.2,1.71658384]
[1772858104010,1.70887684,1973.1,1972.2,1.71658384]
[1772858105508,1.70887684,1973.1,1972.6,1.71088465]
[1772858107912,0.00592797,1973.1,1972.6,1.71088465]
[1772858108314,1.70887684,1973.1,1972.6,1.71088465]
[1772858113520,1.70887684,1973.1,1972.3,1.71088465]
[1772858113817,1.70887684,1973.1,1972.4,1.71088465]
[1772858119523,1.70887684,1973.1,1972.6,1.71088465]
[1772858128730,1.70294887,1972.9,1972.2,1.71658384]
[1772858129032,1.70887684,1973.1,1972.6,1.71088465]
[1772858129231,0.00592797,1973.1,1972.8,1.71088465]
[1772858129835,1.70294887,1973.7,1973.0,1.71088465]
[1772858130126,1.70294887,1973.5,1973.0,1.71088465]
[1772858130826,1.7074273,1973.5,1973.0,1.71088465]
[1772858131031,1.7074273,1973.5,1972.6,1.71088465]
[1772858132930,0.00447843,1973.5,1972.9,1.95979271]
[1772858133134,0.00447843,1973.5,1973.0,1.59599951]
[1772858133836,0.00447843,1973.5,1973.2,1.59599951]
[1772858134030,1.69378833,1973.8,1973.2,1.59599951]
[1772858134928,1.69753779,1973.8,1973.2,1.59599951]
[1772858136038,1.69753779,1973.8,1972.7,1.95979271]
[1772858136039,0.00374946,1973.8,1973.4,1.59599951]
[1772858137340,1.69378833,1974.5,1973.6,1.59599951]
[1772858137534,1.69378833,1974.3,1973.6,1.59599951]
[1772858138136,1.69378833,1974.3,1973.8,1.59599951]
[1772858138340,1.69956146,1974.3,1973.8,1.60012868]
[1772858138541,0.00577313,1974.3,1973.8,1.60012868]
[1772858139543,1.69956146,1974.3,1973.8,1.60012868]
[1772858147653,0.00577313,1974.3,1973.8,1.60012868]